bitfinex-derivatives/quotes_ETHF0:USTF0_20250702
["timestamp","ask_amount","ask_price","bid_price","bid_amount"]
[1751431815130,0.82089,2436.0,2435.9,3.07887266]
[1751431816433,0.82096,2435.8,2435.7,3.04527266]
[1751431817232,0.82096,2435.8,2435.7,3.86626266]
[1751431817433,0.82094,2435.9,2435.8,0.82096]
[1751431817734,0.82094,2435.9,2435.8,1.4523]
[1751431821834,0.82096,2435.8,2435.7,3.04527266]
[1751431822337,0.82096,2435.8,2435.7,4.37817266]
[1751431831739,11.642,2436.2,2435.7,3.04527266]
[1751431831946,0.82082,2436.2,2436.1,2.38147266]
[1751431832138,0.82082,2436.2,2436.1,3.20233266]
[1751431832339,0.8208,2436.3,2436.1,43.74704]
[1751431832540,0.8208,2436.3,2436.2,3.81857266]
[1751431833344,0.82075,2436.5,2436.2,3.81857266]
[1751431833653,11.642,2436.7,2436.3,2.94637]
[1751431834139,0.82074,2436.5,2436.3,2.94637]
[1751431834339,0.82074,2436.5,2436.4,2.38147266]
[1751431834544,0.82074,2436.5,2436.4,3.72337266]
[1751431834841,11.642,2436.7,2436.4,3.72337266]
[1751431834842,0.82069,2436.7,2436.4,3.72337266]
[1751431835042,0.82066,2436.7,2436.6,2.38147266]
[1751431835241,0.82069,2436.6,2436.5,0.6959]
[1751431835436,0.82069,2436.6,2436.5,4.41927266]
[1751431835640,0.82069,2436.6,2436.5,5.11837266]
[1751431836047,15.04384,2437.1,2436.5,5.11837266]
[1751431836248,0.82069,2436.6,2436.5,5.11837266]
[1751431836544,0.82069,2436.6,2436.5,4.41927266]
[1751431836745,0.82069,2436.6,2436.5,5.14477266]
[1751431838748,0.82069,2436.6,2436.5,0.6959]
[1751431843347,0.82069,2436.6,2436.5,3.07737266]
[1751431843650,26.4522,2437.0,2436.5,3.07737266]
[1751431843848,0.82069,2436.6,2436.5,0.6959]
[1751431845045,0.82069,2436.6,2436.5,3.07737266]
[1751431845447,61.43085687,2437.2,2436.5,2.78047266]
[1751431845644,0.82068,2436.7,2436.5,1.21971]
[1751431845843,0.82068,2436.7,2436.6,2.38147266]
[1751431846548,0.82069,2436.6,2436.5,0.399]
[1751431847655,0.82069,2436.6,2436.5,2.78047266]
[1751431854659,0.82069,2436.6,2436.5,3.60119266]
[1751431855159,0.82069,2436.6,2436.5,2.78047266]
[1751431855456,0.82069,2436.6,2436.5,3.60119266]
[1751431855658,0.82069,2436.6,2436.5,44.40119266]
[1751431855853,0.82069,2436.6,2436.5,43.58047266]
[1751431856254,1.13679,2436.6,2436.5,47.6430726]
[1751431859049,1.13679,2436.6,2436.5,4.06259994]
[1751431859655,0.82072,2436.5,2436.4,6.4440726]
[1751431860462,0.82072,2436.5,2436.4,6.44122031]
[1751431861562,0.82072,2436.5,2436.4,2.38147266]
[1751431862066,1.13682,2436.6,2436.5,0.82072]
[1751431862263,1.13682,2436.6,2436.5,4.74664045]
[1751431862460,1.13682,2436.6,2436.5,2.8416]
[1751431862856,1.13682,2436.6,2436.5,5.22307266]
[1751431864760,1.13682,2436.6,2436.5,10.92100103]
[1751431865159,1.13682,2436.6,2436.5,10.23590103]
[1751431865461,1.13682,2436.6,2436.5,5.69792837]
[1751431866360,0.82072,2436.5,2436.4,5.69792837]
[1751431866561,0.82072,2436.5,2436.4,8.07940103]
[1751431867664,0.82072,2436.5,2436.4,9.40650103]
[1751431869263,0.82072,2436.5,2436.4,3.70857266]
[1751431872672,0.82072,2436.5,2436.4,2.38147266]
[1751431877377,0.3161,2436.6,2436.2,2.1272]
[1751431877378,0.82079,2436.3,2436.2,4.50867266]
[1751431877578,0.82079,2436.3,2436.2,0.7266]
[1751431880083,0.82083,2436.2,2436.1,3.08677266]
[1751431880285,0.82083,2436.2,2436.1,8.78762141]
[1751431880985,0.82083,2436.2,2436.1,8.08232141]
[1751431881976,0.82083,2436.2,2436.1,2.38147266]
[1751431882177,0.82083,2436.2,2436.1,6.45146993]
[1751431883683,28.15930266,2436.2,2436.1,4.06999727]
[1751431883879,12.3055,2436.4,2435.8,9.77084602]
[1751431883880,0.82093,2435.9,2435.8,9.77084602]
[1751431884082,0.82093,2435.9,2435.8,8.80182141]
[1751431884387,0.82093,2435.9,2435.8,7.16818642]
[1751431884978,0.82093,2435.9,2435.8,3.10097266]
[1751431885183,0.82093,2435.9,2435.8,7.16818642]
[1751431885384,0.82093,2435.9,2435.8,3.10097266]
[1751431886085,0.82093,2435.9,2435.8,4.53577266]
[1751431886886,0.82093,2435.9,2435.8,8.60298642]
[1751431887289,0.82093,2435.9,2435.8,4.53577266]
[1751431890392,0.82093,2435.9,2435.8,5.35673266]
[1751431890787,0.82089,2436.0,2435.9,0.82091]
[1751431890988,0.82089,2436.0,2435.9,5.21678266]
[1751431891487,24.959,2436.2,2435.9,5.21678266]
[1751431891688,0.82089,2436.0,2435.9,1.51931]
[1751431892194,0.82089,2436.0,2435.9,5.58652376]
[1751431892892,0.82089,2436.0,2435.9,7.96799642]
[1751431894401,0.82089,2436.0,2435.9,7.14708642]
[1751431895099,0.82089,2436.0,2435.9,6.44868642]
[1751431895393,0.82089,2436.0,2435.9,7.15638642]
[1751431896998,0.82088,2436.1,2436.0,0.82089]
[1751431897198,0.82088,2436.1,2436.0,6.44868642]
[1751431898697,0.82088,2436.1,2436.0,4.06721376]
[1751431898899,0.82088,2436.1,2436.0,6.44868642]
[1751431902901,0.82088,2436.1,2436.0,7.89508642]
[1751431903501,25.77885,2436.2,2436.1,0.82086]
[1751431903701,25.77885,2436.2,2436.1,8.56268642]
[1751431905603,0.82085,2436.2,2436.1,8.56268642]
[1751431905805,0.82085,2436.2,2436.1,9.38354642]
[1751431906004,0.82085,2436.2,2436.1,8.56268642]
[1751431907296,0.82085,2436.2,2436.1,4.49547266]
[1751431907495,0.82085,2436.2,2436.1,8.56166366]
[1751431907707,0.82085,2436.2,2436.1,4.49547266]
[1751431908095,0.82085,2436.2,2436.1,8.56165214]
[1751431908300,0.82085,2436.2,2436.1,5.31633266]
[1751431908504,0.82085,2436.2,2436.1,4.49547266]
[1751431913714,0.6896,2436.5,2436.1,4.49547266]
[1751431914012,0.82079,2436.3,2436.2,2.38147266]
[1751431914212,0.82083,2436.2,2436.1,0.6676]
[1751431914515,0.82088,2436.1,2436.0,2.38147266]
[1751431914813,0.82088,2436.1,2436.0,5.22886266]
[1751431915214,0.82084,2436.2,2436.1,0.82085]
[1751431915514,0.82084,2436.2,2436.1,2.15415]
[1751431916314,0.82079,2436.4,2436.2,0.82083]
[1751431916512,0.82079,2436.4,2436.3,7.88337311]
[1751431916712,0.82079,2436.4,2436.3,5.32516266]
[1751431916913,25.77474,2436.5,2436.4,0.82076]
[1751431917114,25.77474,2436.5,2436.4,8.70374675]
[1751431917315,25.77474,2436.5,2436.4,7.88298675]
[1751431917511,0.3161,2436.6,2436.4,7.88298675]
[1751431917713,0.3161,2436.6,2436.5,5.50151409]
[1751431917916,1.1368,2436.6,2436.5,5.50151409]
[1751431918308,1.1368,2436.6,2436.5,6.32223409]
[1751431919315,1.1368,2436.6,2436.5,5.50151409]
[1751431919716,0.3161,2436.6,2436.5,6.32223409]
[1751431920714,1.13679,2436.6,2436.5,6.32223409]
[1751431920912,1.13679,2436.6,2436.5,5.50151409]
[1751431921113,0.3161,2436.6,2436.5,6.32223409]
[1751431921316,0.6613,2437.1,2436.5,6.32223409]
[1751431921317,25.77262,2436.8,2436.6,0.82068]
[1751431921617,0.82061,2436.9,2436.7,5.33053266]
[1751431921916,25.77261,2436.9,2436.7,5.33053266]
[1751431922507,0.82062,2436.8,2436.7,5.33053266]
[1751431922705,25.77261,2436.9,2436.8,0.82062]
[1751431922905,0.82062,2436.8,2436.7,5.33051266]
[1751431923216,25.7726,2436.9,2436.8,0.82062]
[1751431923416,25.7716,2436.9,2436.7,5.33050266]
[1751431924218,0.82062,2436.8,2436.7,4.50987266]
[1751431925215,0.82062,2436.8,2436.7,5.33053266]
[1751431925419,25.77161,2436.9,2436.8,0.82062]
[1751431925611,0.82062,2436.8,2436.7,5.33050266]
[1751431925818,25.77061,2436.9,2436.8,0.82062]
[1751431926020,0.82062,2436.8,2436.7,5.33050266]
[1751431927719,0.82062,2436.8,2436.7,4.50987266]
[1751431928612,0.82062,2436.8,2436.7,5.33053266]
[1751431928818,25.76862,2436.8,2436.7,5.33053266]
[1751431929217,24.948,2436.8,2436.7,5.33053266]
[1751431929420,25.76862,2436.8,2436.7,5.33053266]
[1751431931018,25.76862,2436.8,2436.7,4.50987266]
[1751431931219,25.76862,2436.8,2436.7,5.33053266]
[1751431932124,25.76862,2436.8,2436.7,4.50987266]
[1751431932423,25.76862,2436.8,2436.7,5.33053266]
[1751431932723,24.948,2436.8,2436.7,5.33053266]
[1751431932923,25.76862,2436.8,2436.7,5.33053266]
[1751431933123,24.948,2436.8,2436.7,5.33053266]
[1751431933625,1.53598,2437.0,2436.7,4.50987266]
[1751431933924,0.82058,2437.0,2436.9,3.20206266]
[1751431934619,25.76658,2437.0,2436.9,3.20206266]
[1751431935421,2.45538186,2438.6,2436.9,9.76294532]
[1751431935731,0.82032,2437.7,2437.6,2.38147266]
[1751431935932,24.945,2437.8,2437.2,6.14274123]
[1751431936131,0.82045,2437.3,2437.2,4.05984123]
[1751431936424,0.82049,2437.2,2437.1,4.05984123]
[1751431936629,2.05066,2437.9,2437.1,2.38147266]
[1751431936933,0.82035,2437.6,2437.5,2.38147266]
[1751431937130,0.82045,2437.4,2437.3,2.38147266]
[1751431937525,0.82045,2437.3,2437.2,2.7884]
[1751431937730,0.82045,2437.3,2437.2,9.22971389]
[1751431937928,0.82045,2437.3,2437.2,2.7884]
[1751431938123,0.82045,2437.3,2437.2,0.7055]
[1751431938426,0.82049,2437.2,2437.1,2.38147266]
[1751431938628,0.82047,2437.3,2437.1,8.56801566]
[1751431938832,0.82047,2437.3,2437.2,0.6587]
[1751431939125,0.82044,2437.4,2437.2,1.47919]
[1751431939326,0.82044,2437.4,2437.3,3.69597266]
[1751431941435,0.82044,2437.4,2437.3,2.38147266]
[1751431941637,0.82045,2437.3,2437.2,1.3642]
[1751431943133,0.82045,2437.3,2437.2,2.8087]
[1751431944540,3.41121,2437.7,2437.2,2.8087]
[1751431944736,3.41121,2437.7,2437.3,1.319]
[1751431944737,0.82042,2437.4,2437.3,1.319]
[1751431944934,0.82042,2437.4,2437.3,3.70047266]
[1751431947438,0.82042,2437.4,2437.3,7.75201566]
[1751431947637,0.82042,2437.4,2437.3,4.051543]
[1751431948530,0.82045,2437.3,2437.2,4.051543]
[1751431948728,0.82049,2437.2,2437.1,2.38147266]
[1751431949331,0.82049,2437.2,2437.1,3.04817266]
[1751431950334,0.82049,2437.2,2437.1,4.48177266]
[1751431951741,0.82049,2437.2,2437.1,3.04817266]
[1751431952639,0.82049,2437.2,2437.1,7.10034874]
[1751431952842,0.82049,2437.2,2437.1,4.05217608]
[1751431953439,0.82049,2437.2,2437.1,6.43364874]
[1751431954842,0.82049,2437.2,2437.1,2.38147266]
[1751431955340,0.82049,2437.2,2437.1,1.83417266]
[1751431957341,0.82049,2437.2,2437.1,5.88634874]
[1751431960444,0.82049,2437.2,2437.1,2.26100921]
[1751431960647,2.91629,2437.2,2437.1,9.21e-06]
[1751431961652,3.48489,2437.2,2437.1,9.21e-06]
[1751431961847,0.82059,2436.9,2436.8,8.07033612]
[1751431962252,0.82059,2436.9,2436.8,2.38147266]
[1751431967154,2.61991,2437.2,2436.6,7.08306346]
[1751431967155,4.43278266,2437.1,2436.6,7.08306346]
[1751431967351,0.82066,2436.7,2436.6,7.08306346]
[1751431967657,0.82066,2436.7,2436.6,1.3942]
[1751431968464,0.82066,2436.7,2436.6,2.8246]
[1751431973258,0.82066,2436.7,2436.6,6.88173522]
[1751431974260,0.82066,2436.7,2436.6,9.26320788]
[1751431976168,0.82066,2436.7,2436.6,7.83280788]
[1751431976962,0.82066,2436.7,2436.6,7.11650788]
[1751431977166,0.82066,2436.7,2436.6,6.43860788]
[1751431978360,0.5686,2437.2,2436.6,55.75240673]
[1751431978558,0.82025,2437.9,2437.8,2.38147266]
[1751431978758,0.82032,2437.7,2437.6,2.38147266]
[1751431980364,0.82039,2437.5,2437.4,3.75077266]
[1751431980559,0.82038,2437.6,2437.4,4.57119266]
[1751431980760,0.82038,2437.6,2437.5,3.20186266]
[1751431980963,1.3781,2438.0,2437.5,3.20186266]
[1751431980964,0.82033,2437.7,2437.5,8.58089788]
[1751431981161,0.82033,2437.7,2437.6,7.16550788]
[1751431981361,0.82033,2437.7,2437.6,8.48740788]
[1751431983065,0.82033,2437.7,2437.6,4.05713522]
[1751431983366,0.82039,2437.5,2437.4,4.05713522]
[1751431984171,0.82035,2437.7,2437.5,0.82039]
[1751431984466,0.82035,2437.7,2437.6,3.79947266]
[1751431984666,0.82035,2437.7,2437.6,4.45817266]
[1751431989067,2.05061,2438.0,2437.5,2.38147266]
[1751431989371,0.82038,2437.6,2437.5,3.20186266]
[1751431989667,0.82038,2437.6,2437.5,3.72307266]
[1751431989966,3.49671,2438.0,2437.4,4.04783622]
[1751431990169,0.82039,2437.5,2437.4,4.04783622]
[1751431990570,0.82042,2437.4,2437.3,8.57575888]
[1751431990770,0.82041,2437.5,2437.3,9.91735888]
[1751431991270,0.82042,2437.4,2437.3,9.09690888]
[1751431993173,0.82042,2437.4,2437.3,9.91735888]
[1751431993470,0.82042,2437.4,2437.3,9.09690888]
[1751431994170,0.82042,2437.4,2437.3,5.04907266]
[1751431994473,0.82042,2437.4,2437.3,5.86952266]
[1751431994971,0.82042,2437.4,2437.3,5.04907266]
[1751431996574,0.82042,2437.4,2437.3,5.86952266]
[1751431996773,0.82042,2437.4,2437.3,5.04907266]
[1751431997475,0.82042,2437.4,2437.3,5.86952266]
[1751431997673,0.82042,2437.4,2437.3,5.04907266]
[1751432002877,0.82042,2437.4,2437.3,2.6676]
[1751432003081,0.82042,2437.4,2437.3,1.326]
[1751432003271,0.82042,2437.4,2437.3,0.6581]
[1751432003475,0.82045,2437.3,2437.2,4.04783622]
[1751432004178,0.82045,2437.3,2437.2,6.42930888]
[1751432004576,0.82045,2437.3,2437.2,7.82190888]
[1751432005376,0.82045,2437.3,2437.2,3.77407266]
[1751432007079,0.82045,2437.3,2437.2,7.82814544]
[1751432007383,0.82045,2437.3,2437.2,3.77407266]
[1751432011091,0.82049,2437.2,2437.1,5.67533494]
[1751432011292,0.82052,2437.1,2437.0,8.7729076]
[1751432011787,0.82052,2437.1,2437.0,3.09757266]
[1751432014491,0.82059,2436.9,2436.8,6.37973494]
[1751432014686,0.82059,2436.9,2436.8,10.0799076]
[1751432015195,0.82059,2436.9,2436.8,9.3755076]
[1751432015696,0.82059,2436.9,2436.8,10.0993076]
[1751432016496,0.82059,2436.9,2436.8,4.42397266]
[1751432017994,0.82059,2436.9,2436.8,5.24459266]
[1751432018199,0.82059,2436.9,2436.8,10.9199276]
[1751432018601,0.82059,2436.9,2436.8,5.24459266]
[1751432018795,0.6858,2437.3,2436.8,4.42397266]
[1751432018994,0.82049,2437.2,2437.1,2.38147266]
[1751432023005,0.82052,2437.1,2437.0,4.05577424]
[1751432023201,1.50382,2437.1,2437.0,6.4372469]
[1751432023400,70.686,2438.2,2437.0,21.28789508]
[1751432023601,0.82025,2437.9,2437.8,2.38147266]
[1751432023999,0.6677,2438.1,2437.8,3.20175266]
[1751432024208,1.48789,2438.1,2438.0,2.38147266]
[1751432024602,0.82019,2438.1,2438.0,2.38147266]
[1751432025302,0.82017,2438.2,2438.0,3.20167266]
[1751432025509,0.82017,2438.2,2438.1,2.38147266]
[1751432025709,0.82017,2438.2,2438.1,3.79787266]
[1751432026204,11.63,2438.7,2438.1,4.61803266]
[1751432026399,0.82014,2438.3,2438.1,1.4164]
[1751432026600,0.82014,2438.3,2438.2,2.38147266]
[1751432027209,0.8201,2438.4,2438.2,2.38147266]
[1751432027615,0.82012,2438.3,2438.2,2.38147266]
[1751432027811,0.8201,2438.4,2438.2,2.38147266]
[1751432028109,0.8201,2438.4,2438.3,1.4164]
[1751432028614,0.82015,2438.2,2438.1,3.07287266]
[1751432030208,0.82022,2438.0,2437.9,8.5612469]
[1751432031513,0.82022,2438.0,2437.9,4.50547266]
[1751432033015,0.82022,2438.0,2437.9,0.7011]
[1751432033620,0.82025,2437.9,2437.8,4.05577424]
[1751432034322,0.82029,2437.8,2437.7,6.4372469]
[1751432034619,0.82029,2437.8,2437.7,4.05577424]
[1751432034809,0.82029,2437.8,2437.7,6.4372469]
[1751432035210,0.82029,2437.8,2437.7,2.38147266]
[1751432035819,0.82029,2437.8,2437.7,3.70117266]
[1751432042229,0.82029,2437.8,2437.7,2.38147266]
[1751432043028,29.03449,2438.2,2437.5,4.76497424]
[1751432043029,2.0506,2438.0,2437.5,4.76497424]
[1751432043231,0.82035,2437.6,2437.5,0.7092]
[1751432044031,0.82035,2437.6,2437.5,2.0187]
[1751432044931,0.82035,2437.6,2437.5,2.83909]
[1751432045230,0.82035,2437.6,2437.5,2.12989]
[1751432045425,0.82035,2437.6,2437.5,2.78649]
[1751432045631,0.82035,2437.6,2437.5,1.9661]
[1751432045930,0.82035,2437.6,2437.5,2.78649]
[1751432047032,0.82035,2437.7,2437.6,0.82034]
[1751432047227,0.82035,2437.7,2437.6,3.73257266]
[1751432050229,0.82035,2437.7,2437.6,7.7883469]
[1751432051634,0.82035,2437.7,2437.6,4.05577424]
[1751432051934,0.82035,2437.7,2437.6,2.38147266]
[1751432053535,0.82035,2437.7,2437.6,6.4372469]
[1751432056236,2.70694,2438.1,2437.6,6.4372469]
[1751432056436,25.77619,2438.1,2438.0,2.38147266]
[1751432056641,25.77619,2438.1,2437.6,6.10977424]
[1751432056642,24.956,2438.1,2437.8,2.38147266]
[1751432056943,0.82025,2437.9,2437.8,2.38147266]
[1751432057135,0.82029,2437.8,2437.7,4.05577424]
[1751432057634,0.82032,2437.7,2437.6,7.7963469]
[1751432057841,0.82032,2437.7,2437.6,9.1702469]
[1751432058436,0.82032,2437.7,2437.6,5.11447266]
[1751432059842,0.82032,2437.7,2437.6,4.43437266]
[1751432062042,0.82032,2437.7,2437.6,8.48592193]
[1751432062442,0.82032,2437.7,2437.6,4.43437266]
[1751432062833,0.82032,2437.7,2437.6,0.679]
[1751432063042,0.82032,2437.7,2437.6,3.06047266]
[1751432063239,0.82035,2437.6,2437.5,0.7027]
[1751432063936,0.82035,2437.6,2437.5,3.08417266]
[1751432066643,0.82035,2437.6,2437.5,4.46557266]
[1751432071450,0.82035,2437.6,2437.5,3.08417266]
[1751432071646,0.82035,2437.6,2437.5,2.38147266]
[1751432073455,2.05062,2438.0,2437.5,2.38147266]
[1751432073651,0.82022,2438.0,2437.9,2.38147266]
[1751432073851,0.82029,2437.8,2437.7,6.43707879]
[1751432074051,0.82029,2437.8,2437.7,6.4370713]
[1751432074353,0.82029,2437.8,2437.7,4.05559864]
[1751432075956,0.82029,2437.8,2437.7,6.4370713]
[1751432076453,0.82029,2437.8,2437.7,7.7567713]
[1751432076654,0.82027,2437.9,2437.7,8.5770913]
[1751432076854,0.6878,2438.2,2437.8,1.3197]
[1751432077048,0.82015,2438.2,2438.1,2.38147266]
[1751432077447,0.82015,2438.2,2438.1,3.07477266]
[1751432078053,0.82015,2438.2,2438.1,4.46817266]
[1751432079156,0.82015,2438.2,2438.1,8.5237713]
[1751432079757,0.82015,2438.2,2438.1,9.3439613]
[1751432079957,0.82012,2438.4,2438.2,0.82014]
[1751432080159,0.82012,2438.4,2438.3,3.77487266]
[1751432080354,11.596,2438.8,2438.3,3.77487266]
[1751432080556,36.562,2438.8,2438.5,2.38147266]
[1751432080756,0.82002,2438.6,2438.5,2.38147266]
[1751432080955,0.82002,2438.6,2438.5,0.6987]
[1751432081151,0.82008,2438.4,2438.3,2.38147266]
[1751432081357,0.82007,2438.5,2438.3,2.38147266]
[1751432081956,0.82008,2438.4,2438.3,2.38147266]
[1751432082161,0.82008,2438.4,2438.3,6.4370713]
[1751432082663,0.82008,2438.4,2438.3,4.05559864]
[1751432082863,0.82012,2438.3,2438.2,4.75429864]
[1751432083059,2.38147266,2438.7,2438.2,4.75429864]
[1751432083365,0.82012,2438.3,2438.2,4.75429864]
[1751432084966,0.82012,2438.3,2438.2,0.6987]
[1751432087766,0.82015,2438.2,2438.1,4.05559864]
[1751432088268,0.82015,2438.2,2438.1,6.4370713]
[1751432089261,0.82015,2438.2,2438.1,2.38147266]
[1751432089665,0.82015,2438.2,2438.1,6.4370713]
[1751432090670,0.82015,2438.2,2438.1,7.2572613]
[1751432091369,0.82015,2438.2,2438.1,2.38147266]
[1751432091671,14.31325,2438.6,2438.1,7.2572213]
[1751432091672,0.82013,2438.3,2438.1,7.2572213]
[1751432091972,0.82013,2438.3,2438.1,6.4370713]
[1751432092175,0.82015,2438.2,2438.1,7.2572413]
[1751432093166,11.595,2438.6,2438.2,0.82014]
[1751432093167,0.82014,2438.3,2438.2,0.82014]
[1751432093366,0.82014,2438.3,2438.2,2.22364]
[1751432094374,0.82011,2438.4,2438.2,2.22364]
[1751432094573,0.82011,2438.4,2438.3,1.4035]
[1751432094974,0.82011,2438.4,2438.3,3.78497266]
[1751432097076,0.82008,2438.4,2438.3,4.60509266]
[1751432097271,0.82008,2438.5,2438.3,3.78497266]
[1751432097477,0.82008,2438.5,2438.4,4.41467266]
[1751432099078,0.82008,2438.5,2438.4,5.08657266]
[1751432100181,4.14095,2439.0,2438.4,4.38447266]
[1751432100380,0.82002,2438.6,2438.5,2.0582]
[1751432100581,0.82002,2438.6,2438.5,4.43967266]
[1751432100782,0.82002,2438.6,2438.5,3.08357266]
[1751432100981,0.82002,2438.6,2438.4,0.6719]
[1751432100982,0.82005,2438.5,2438.4,0.6719]
[1751432102278,0.82005,2438.5,2438.4,1.9868]
[1751432102476,24.984,2438.7,2438.4,1.9868]
[1751432102678,0.82003,2438.6,2438.5,4.51642266]
[1751432102982,0.82003,2438.6,2438.5,3.20152266]
[1751432103383,0.82003,2438.6,2438.5,2.38147266]
[1751432105386,0.82005,2438.5,2438.4,4.72749864]
[1751432105582,0.82005,2438.5,2438.4,7.1089713]
[1751432107280,0.82005,2438.5,2438.4,3.05337266]
[1751432107582,0.82005,2438.5,2438.4,3.87345266]
[1751432107786,0.82005,2438.5,2438.4,3.05337266]
[1751432107982,0.82005,2438.5,2438.4,7.10448187]
[1751432108187,0.82005,2438.5,2438.4,3.05337266]
[1751432110583,0.82005,2438.5,2438.4,7.10623331]
[1751432110789,0.82005,2438.5,2438.4,4.05286065]
[1751432111291,0.82005,2438.5,2438.4,6.43433331]
[1751432111587,25.78205,2438.5,2438.4,6.43433331]
[1751432113494,25.78405,2438.5,2438.4,6.43433331]
[1751432114193,25.77805,2438.5,2438.4,6.43433331]
[1751432114494,0.82005,2438.5,2438.4,7.25441331]
[1751432114690,0.82005,2438.5,2438.4,2.38147266]
[1751432114995,0.82005,2438.5,2438.4,3.20154266]
[1751432115194,0.82005,2438.5,2438.4,2.38147266]
[1751432115994,0.82005,2438.5,2438.4,3.20155266]
[1751432116695,0.82005,2438.5,2438.4,2.38147266]
[1751432117394,0.6713,2438.8,2438.4,2.38147266]
[1751432117596,0.81995,2438.8,2438.7,2.38147266]
[1751432117899,25.77995,2438.8,2438.7,2.38147266]
[1751432118194,25.77895,2438.8,2438.7,2.38147266]
[1751432118384,0.81995,2438.8,2438.7,2.38147266]
[1751432118792,25.77495,2438.8,2438.7,4.05236384]
[1751432119197,0.81995,2438.8,2438.7,4.05236384]
[1751432119793,0.81998,2438.7,2438.6,4.05236384]
[1751432120296,2.88488,2438.7,2438.6,4.05236384]
[1751432121301,0.82002,2438.6,2438.5,4.05236384]
[1751432121589,0.82005,2438.5,2438.4,4.77596384]
[1751432122197,0.82005,2438.5,2438.4,0.7236]
[1751432124301,0.82005,2438.5,2438.4,4.77596384]
[1751432124804,0.6621,2438.7,2438.4,4.77596384]
[1751432125001,26.42908,2438.7,2438.6,2.38147266]
[1751432125402,25.76698,2438.7,2438.6,2.38147266]
[1751432125701,0.81998,2438.7,2438.6,2.38147266]
[1751432125904,0.81998,2438.7,2438.6,3.04757266]
[1751432126500,0.81998,2438.7,2438.6,4.43067266]
[1751432126901,25.76898,2438.7,2438.6,4.43067266]
[1751432127096,25.76898,2438.7,2438.6,8.4830365]
[1751432127601,25.76898,2438.7,2438.6,4.43067266]
[1751432130999,0.81998,2438.7,2438.6,4.43067266]
[1751432131301,25.76698,2438.7,2438.6,4.43067266]
[1751432132707,25.76698,2438.7,2438.6,8.48292985]
[1751432132901,25.76698,2438.7,2438.6,4.43067266]
[1751432133102,25.76698,2438.7,2438.6,8.48300846]
[1751432133907,25.76698,2438.7,2438.6,4.43067266]
[1751432134708,25.76698,2438.7,2438.6,5.25069266]
[1751432135205,25.76698,2438.7,2438.6,4.58459266]
[1751432135507,25.76698,2438.7,2438.6,3.76457266]
[1751432136109,0.81998,2438.7,2438.6,3.76457266]
[1751432136306,0.81998,2438.7,2438.6,7.81637534]
[1751432136506,25.76698,2438.7,2438.6,7.81637534]
[1751432136707,25.76698,2438.7,2438.6,3.76457266]
[1751432137708,25.76698,2438.7,2438.6,4.58459266]
[1751432138410,0.81998,2438.7,2438.6,3.76457266]
[1751432139612,0.81998,2438.7,2438.6,4.58459266]
[1751432140599,0.81998,2438.8,2438.7,0.81998]
[1751432140804,0.81998,2438.8,2438.7,4.05128142]
[1751432141004,25.76498,2438.8,2438.7,7.01626142]
[1751432141507,3.42355,2439.1,2438.8,0.81994]
[1751432141508,25.76495,2438.9,2438.8,0.81994]
[1751432141707,25.76495,2438.9,2438.8,8.63589408]
[1751432142008,0.81995,2438.9,2438.8,8.63589408]
[1751432142209,25.76495,2438.9,2438.8,8.63589408]
[1751432142408,25.76495,2438.9,2438.8,7.81595408]
[1751432142904,0.81995,2438.9,2438.8,7.81595408]
[1751432143103,25.76495,2438.9,2438.8,8.63590408]
[1751432143304,25.76495,2438.9,2438.8,7.81595408]
[1751432144308,25.76395,2438.9,2438.8,7.81595408]
[1751432144509,25.76395,2438.9,2438.8,4.05128142]
[1751432144707,0.81998,2438.7,2438.6,4.05128142]
[1751432145013,0.82008,2438.4,2438.3,8.0568076]
[1751432145212,0.82008,2438.4,2438.3,2.38147266]
[1751432145413,0.82008,2438.4,2438.3,10.21074753]
[1751432145615,0.82008,2438.4,2438.3,9.39062753]
[1751432145813,0.82008,2438.4,2438.3,10.21074753]
[1751432146114,25.76404,2438.6,2438.3,9.39062753]
[1751432146314,0.82004,2438.6,2438.5,3.20152266]
[1751432146710,0.82004,2438.6,2438.5,5.26022266]
[1751432147611,0.81996,2438.8,2438.7,0.81997]
[1751432148514,0.81996,2438.8,2438.7,1.3686]
[1751432149014,0.81996,2438.8,2438.7,3.75007266]
[1751432149210,0.81996,2438.8,2438.7,2.38147266]
[1751432149811,24.944,2438.9,2438.6,5.67127738]
[1751432149812,0.81998,2438.7,2438.6,5.67127738]
[1751432153917,25.76298,2438.7,2438.6,5.67127738]
[1751432155419,19.61513493,2438.7,2438.6,5.67127738]
[1751432155615,20.43511493,2438.7,2438.6,5.67127738]
[1751432157313,0.81998,2438.7,2438.6,7.12027738]
[1751432158618,0.81998,2438.7,2438.6,7.94029738]
[1751432158816,0.81998,2438.7,2438.6,7.12027738]
[1751432161321,0.82002,2438.6,2438.5,3.10397266]
[1751432162320,0.82002,2438.6,2438.5,4.54377266]
[1751432165419,0.7256,2438.8,2438.5,4.54377266]
[1751432165621,0.81998,2438.7,2438.6,5.6764463]
[1751432168121,0.81998,2438.7,2438.6,8.05791896]
[1751432170121,0.81998,2438.7,2438.6,9.39551896]
[1751432171816,0.81998,2438.7,2438.6,10.21553896]
[1751432172021,0.81998,2438.7,2438.6,9.39551896]
[1751432172520,0.81998,2438.7,2438.6,3.71907266]
[1751432172724,0.81998,2438.7,2438.6,9.39604687]
[1751432173616,0.81998,2438.7,2438.6,3.71907266]
[1751432175620,0.81998,2438.7,2438.6,4.53909266]
[1751432178329,0.81995,2438.8,2438.7,0.81997]
[1751432178632,0.81995,2438.8,2438.7,2.86757]
[1751432179130,24.937,2439.2,2438.8,0.81993]
[1751432179329,0.81988,2439.0,2438.9,5.4407761]
[1751432179532,0.81988,2439.0,2438.9,2.38147266]
[1751432181031,0.81992,2438.9,2438.8,2.38147266]
[1751432181227,0.81992,2438.9,2438.8,6.4355216]
[1751432181528,0.81992,2438.9,2438.8,4.05404894]
[1751432182927,0.81992,2438.9,2438.8,6.4355216]
[1751432183126,0.81992,2438.9,2438.8,4.05404894]
[1751432183326,0.81992,2438.9,2438.8,6.4355216]
[1751432184034,0.81992,2438.9,2438.8,4.05404894]